fUST/lending_fUST_20260212
["ID","MTS","AMOUNT","RATE_DAILY","PERIOD"]
[405108163,1770836946315,-500.0,0.00024074,2]
[405108164,1770836946336,-500.0,0.00024074,2]
[405108165,1770836946357,-500.0,0.00024074,2]
[405108166,1770836946378,-500.0,0.00024074,2]
[405108167,1770836946399,-500.0,0.00024074,2]
[405108168,1770836946420,-500.0,0.00024074,2]
[405108169,1770836946443,-500.0,0.00024074,2]
[405108170,1770836946463,-211.88739361,0.00024074,2]
[405108171,1770836946615,-500.0,0.00024074,2]
[405108172,1770836946637,-500.0,0.00024074,2]
[405108173,1770836946658,-500.0,0.00024074,2]
[405108174,1770836946678,-500.0,0.00024074,2]
[405108175,1770836946700,-500.0,0.00024074,2]
[405108176,1770836946724,-500.0,0.00024074,2]
[405108177,1770836946744,-500.0,0.00024074,2]
[405108178,1770836946767,-500.0,0.00024074,2]
[405108179,1770836946790,-500.0,0.00024074,2]
[405108180,1770836946812,-500.0,0.00024074,2]
[405108181,1770836946832,-500.0,0.00024074,2]
[405108182,1770836946854,-500.0,0.00024074,2]
[405108183,1770836946874,-500.0,0.00024074,2]
[405108184,1770836946894,-500.0,0.00024074,2]
[405108185,1770836946916,-500.0,0.00024074,2]
[405108186,1770836946940,-500.0,0.00024074,2]
[405108187,1770836946959,-500.0,0.00024074,2]
[405108188,1770836946981,-500.0,0.00024074,2]
[405108189,1770836947002,-500.0,0.00024074,2]
[405108190,1770836947024,-500.0,0.00024074,2]
[405108191,1770836947046,-500.0,0.00024074,2]
[405108192,1770836947066,-500.0,0.00024074,2]
[405108193,1770836947086,-500.0,0.00024074,2]
[405108194,1770836947107,-500.0,0.00024074,2]
[405108195,1770836947129,-500.0,0.00024074,2]
[405108196,1770836947150,-500.0,0.00024074,2]
[405108197,1770836947170,-500.0,0.00024074,2]
[405108198,1770836947190,-500.0,0.00024074,2]
[405108199,1770836947209,-500.0,0.00024074,2]
[405108200,1770836947230,-500.0,0.00024074,2]
[405108201,1770836947250,-500.0,0.00024074,2]
[405108202,1770836947269,-500.0,0.00024074,2]
[405108203,1770836947289,-500.0,0.00024074,2]
[405108204,1770836947308,-500.0,0.00024074,2]
[405108205,1770836947328,-500.0,0.00024074,2]
[405108206,1770836947347,-500.0,0.00024074,2]
[405108207,1770836947368,-500.0,0.00024074,2]
[405108208,1770836947387,-500.0,0.00024074,2]
[405108209,1770836947407,-500.0,0.00024074,2]
[405108210,1770836947428,-500.0,0.00024074,2]
[405108211,1770836947452,-500.0,0.00024074,2]
[405108212,1770836947473,-500.0,0.00024074,2]
[405108213,1770836947495,-500.0,0.00024074,2]
[405108214,1770836947517,-500.0,0.00024074,2]
[405108215,1770836947538,-639.6597585,0.00024074,2]
[405108216,1770836947559,-236.52610396,0.00024074,2]
[405108217,1770836947582,-500.0,0.00024074,2]
[405108218,1770836947604,-500.0,0.00024074,2]
[405108219,1770836947626,-500.0,0.00024074,2]
[405108220,1770836947649,-436.41592007,0.00024074,2]
[405108221,1770836947670,-500.0,0.00024074,2]
[405108222,1770836947690,-500.0,0.00024074,2]
[405108223,1770836947710,-500.0,0.00024074,2]
[405108224,1770836947732,-500.0,0.00024074,2]
[405108225,1770836947754,-500.0,0.00024074,2]
[405108226,1770836947774,-500.0,0.00024074,2]
[405108227,1770836947796,-500.0,0.00024074,2]
[405108228,1770836947817,-500.0,0.00024074,2]
[405108229,1770836947838,-499.99999999,0.00024074,2]
[405108230,1770836947858,-571.989978,0.00025647,2]
[405108231,1770836947879,-177.0,0.00025845,2]
[405108232,1770836947899,-293.24,0.000259,2]
[405108233,1770836947919,-420.0,0.00025997,2]
[405108234,1770836947938,-571.989978,0.00026726,2]
[405108235,1770836947957,-571.989978,0.00027806,2]
[405108236,1770836947980,-204.0,0.00027845,2]
[405108237,1770836947999,-587.0,0.00028193,2]
[405108238,1770836948095,-464.64760551,0.00028886,2]
[405108240,1770836957084,-500.0,0.00023773,2]
[405108241,1770836957107,-480.0,0.00023773,2]
[405108242,1770836972098,-500.0,0.00024073,2]
[405108243,1770836972120,-548.49065779,0.00024073,2]
[405108244,1770836972144,-446.66798699,0.00024073,2]
[405108246,1770837012510,351.80162554,0.00013699,2]
[405108247,1770837012544,500.0,0.00013273,2]
[405108248,1770837012587,344.24720649,0.00014247,2]
[405108249,1770837012695,500.0,0.00013699,2]
[405108275,1770837032222,-500.0,0.00027789,2]
[405108277,1770837032232,-107.34237249,0.00028886,2]
[405108279,1770837032241,-231.0,0.00029845,2]
[405108281,1770837032250,-571.989978,0.00029965,2]
[405108283,1770837032260,-571.989978,0.00031045,2]
[405108285,1770837032269,-252.1580949,0.00031177,30]
[405108287,1770837032279,-258.0,0.00031845,2]
[405108289,1770837032290,-400.0,0.00032569,2]
[405108291,1770837032303,-500.0,0.0003257,5]
[405108294,1770837032313,-500.0,0.0003257,5]
[405108296,1770837032323,-431.32365662,0.00033152,2]
[405108298,1770837032334,-169.6955649,0.00033712,3]
[405108300,1770837032344,-362.29268561,0.00034628,2]
[405108302,1770837032354,-2000.0,0.00034994,2]
[405108304,1770837032364,-530.99986338,0.00034994,2]
[405108458,1770837038507,-500.0,0.00034993,7]
[405108459,1770837038518,-626.62886206,0.00034993,7]
[405108460,1770837038529,-1469.00013662,0.00034994,2]
[405108461,1770837038683,-2000.0,0.00034994,2]
[405108462,1770837038693,-2000.0,0.00034994,2]
[405108463,1770837038703,-2000.0,0.00034994,2]
[405108464,1770837038713,-2000.0,0.00034994,2]
[405108465,1770837038724,-2000.0,0.00034994,2]
[405108466,1770837038734,-532.24359328,0.00034994,2]
[405108467,1770837038743,-560.0,0.00035009,2]
[405108468,1770837038752,-170.41096115,0.00035137,2]
[405108469,1770837038762,-3218.05161621,0.0003539,3]
[405108470,1770837038772,-401.0,0.000354,11]
[405108471,1770837038782,-742.38915205,0.00036365,2]
[405108472,1770837038792,-399.0,0.00036373,11]
[405108473,1770837038802,-362.03355267,0.000364,2]
[405108474,1770837038811,-2000.0,0.00036603,2]
[405108475,1770837038821,-712.0,0.00036603,11]
[405108476,1770837038832,-401.0,0.00036603,11]
[405108477,1770837038843,-161.0,0.0003666,11]
[405108478,1770837038853,-401.0,0.00036688,11]
[405108479,1770837038863,-1088.49384634,0.00036832,5]
[405108480,1770837038873,-1603.42869741,0.00036832,2]
[405108481,1770837038885,-420.0,0.00036843,30]
[405108482,1770837038894,-453.0,0.00036843,30]
[405108483,1770837038903,-712.0,0.00036851,11]
[405108484,1770837038913,-500.0,0.00036884,2]
[405108485,1770837038924,-715.0,0.00036926,11]
[405108486,1770837038935,-413.63473478,0.00036971,2]
[405108487,1770837038944,-401.0,0.0003698,11]
[405108488,1770837038954,-1000.0,0.00036986,5]
[405108489,1770837038963,-500.0,0.00036989,2]
[405108490,1770837038974,-5402.16,0.0003699,10]
[405108491,1770837038984,-7869.17720495,0.0003699,3]
[405108494,1770837040408,-3e-08,0.0003699,3]
[405108495,1770837040419,-11439.13249232,0.0003699,3]
[405108496,1770837040428,-5789.61901109,0.00036999,2]
[405108497,1770837040442,-500.0,0.00036999,2]
[405108498,1770837040451,-5971.24849659,0.00037,2]
[405108499,1770837040467,-192594.4067273,0.00037,2]
[405108500,1770837040476,-176.91530962,0.00037,20]
[405108501,1770837040486,-2049.36092957,0.00037,2]
[405108502,1770837040495,-1949.29,0.00037,14]
[405108503,1770837040505,-168.23,0.00037,7]
[405108504,1770837040514,-500.0,0.00037,120]
[405108505,1770837040523,-40045.90650622,0.00037,2]
[405108506,1770837040534,-10368.79,0.00037,14]
[405108507,1770837040543,-2718.13,0.00037,30]
[405108508,1770837040554,-172.28,0.00037,7]
[405108509,1770837040563,-712.0,0.00037171,11]
[405108510,1770837040572,-401.0,0.00037171,11]
[405108511,1770837040581,-501.079,0.00037176,7]
[405108512,1770837040591,-179.0,0.00037278,2]
[405108513,1770837040600,-401.0,0.00037328,11]
[405108514,1770837040610,-600.0,0.00037332,30]
[405108515,1770837040620,-401.0,0.00037333,11]
[405108516,1770837040630,-401.0,0.00037338,11]
[405108517,1770837040639,-401.0,0.000374,11]
[405108518,1770837040648,-179.0,0.00037436,2]
[405108519,1770837040657,-525.60276442,0.000375,2]
[405108520,1770837040667,-234.6302758,0.000375,120]
[405108521,1770837040681,-1049.0,0.00037503,30]
[405108522,1770837040690,-901.5,0.00037503,30]
[405108523,1770837040700,-401.0,0.00037554,11]
[405108524,1770837040710,-560.0,0.00037632,2]
[405108525,1770837040720,-401.0,0.00037651,11]
[405108526,1770837040730,-181.0,0.00037654,2]
[405108527,1770837040739,-410.0,0.00037654,11]
[405108528,1770837040749,-791.0,0.00037664,11]
[405108529,1770837040758,-712.0,0.0003772,11]
[405108530,1770837040767,-6436.10323242,0.0003779,3]
[405108531,1770837040777,-1024.05357988,0.000378,2]
[405108532,1770837040786,-89228.22462085,0.000378,120]
[405108533,1770837040795,-712.0,0.00037811,11]
[405108534,1770837040804,-153.2455446,0.00037863,30]
[405108535,1770837040812,-9654.15484863,0.0003788,3]
[405108536,1770837040821,-101163.40475829,0.0003789,2]
[405108537,1770837040833,-26955.2,0.0003789,2]
[405109495,1770837062976,502.83705257,0.00013699,2]
[405109496,1770837066875,500.0,0.00013273,2]
[405109497,1770837083716,500.0,0.00013699,2]
[405109503,1770837262540,500.0,0.00024519,2]
[405109513,1770837337656,500.0,0.00025,2]
[405109514,1770837337685,748.00912228,0.00025,2]
[405109516,1770837374248,251.99087772,0.00013699,2]
[405109517,1770837374273,255.11034274,0.00013699,2]
[405109531,1770837667841,189.88697358,0.00013699,2]
[405109532,1770837672091,210.44628504,0.00013273,2]
[405109533,1770837691611,344.55639864,0.00013699,2]
[405109534,1770837691657,155.44360136,0.00013699,2]
[405109535,1770837691705,500.0,0.00014247,2]
[405109538,1770837727011,190.76989047,0.00013273,2]
[405109550,1770838023288,500.0,0.00013699,2]
[405109551,1770838023336,611.48591482,0.00014247,2]
[405109552,1770838028957,500.0,0.00013699,2]
[405109553,1770838028989,438.16441978,0.00013699,2]
[405109554,1770838029116,-157.46049339,0.00025122,2]
[405109556,1770838039084,-173.158625,0.00025122,2]
[405109557,1770838052838,-197.76050675,0.00024871,2]
[405109563,1770838111137,14164.39767715,0.0002,2]
[405109567,1770838146163,-173.46,0.00024376,2]
[405109568,1770838149400,-178.27090161,0.00024376,2]
[405109569,1770838149421,-3650.77223899,0.00024622,2]
[405109570,1770838154194,-1349.22776101,0.00024622,2]
[405109571,1770838154213,-2324.94178706,0.00024647,2]
[405109572,1770838154234,-300.0,0.00024649,2]
[405109573,1770838154253,-13703.63809246,0.0002465,2]
[405109574,1770838155091,-1519.87051347,0.0002465,2]
[405109575,1770838155146,-5096.94823053,0.0002465,2]
[405109576,1770838155165,-516.01812439,0.0002465,2]
[405109577,1770838155184,-150.0,0.00024747,2]
[405109578,1770838155202,-2330.31439895,0.00024774,2]
[405109579,1770838155224,-500.0,0.0002487,2]
[405109580,1770838155246,-500.0,0.0002487,2]
[405109581,1770838155266,-287.81904833,0.0002487,2]
[405109582,1770838155287,-500.0,0.0002487,2]
[405109583,1770838155308,-500.0,0.0002487,2]
[405109584,1770838155328,-500.0,0.0002487,2]
[405109585,1770838155349,-437.09733915,0.0002487,2]
[405109586,1770838155370,-500.0,0.0002487,2]
[405109587,1770838155391,-500.0,0.0002487,2]
[405109588,1770838155412,-500.0,0.0002487,2]
[405109589,1770838155434,-500.0,0.0002487,2]
[405109590,1770838155455,-500.0,0.0002487,2]
[405109591,1770838155475,-500.0,0.0002487,2]
[405109592,1770838155496,-500.0,0.0002487,2]
[405109593,1770838155517,-500.0,0.0002487,2]
[405109594,1770838155536,-500.0,0.0002487,2]
[405109595,1770838155557,-208.54969698,0.0002487,2]
[405109596,1770838155579,-500.0,0.0002487,2]
[405109597,1770838155603,-424.65947684,0.0002487,2]
[405109598,1770838155625,-500.0,0.0002487,2]
[405109599,1770838155645,-568.19726524,0.0002487,2]
[405109600,1770838155755,-4802.23949325,0.00024871,2]
[405109601,1770838155775,-11288.73505786,0.00025,2]
[405109603,1770838168130,-1000.0,0.000255,2]
[405109604,1770838168150,-420.0,0.00026713,2]
[405109605,1770838168170,-177.0,0.00026747,2]
[405109606,1770838168190,-204.0,0.00028747,2]
[405109607,1770838168210,-587.0,0.00028949,2]
[405109608,1770838168229,-156.0,0.00029425,34]
[405109609,1770838168247,-605.50498393,0.00029425,2]
[405109612,1770838207518,500.0,0.00013699,2]
[405109613,1770838207568,500.0,0.00014247,2]
[405109614,1770838207878,14.23489615,0.00013273,2]
[405109615,1770838207913,485.76510385,0.00013273,2]
[405109616,1770838207995,1000.0,0.00013821,2]
[405109618,1770838210639,197.76050675,0.00013699,2]
[405109619,1770838218875,337.83295742,0.00013699,2]
[405109648,1770838232379,-901.46549637,0.00029425,2]
[405109650,1770838232389,-879.0869274,0.00029625,2]
[405109652,1770838232401,-300.0,0.00029999,2]
[405109654,1770838232410,-300.0,0.00029999,2]
[405109656,1770838232420,-300.0,0.00029999,2]
[405109657,1770838232429,-300.0,0.00029999,2]
[405109658,1770838232438,-1200.0,0.00029999,2]
[405109659,1770838232448,-2723.57768648,0.0003,2]
[405109660,1770838232457,-353.297156,0.00030659,30]
[405109662,1770838232466,-151.0,0.00031045,14]
[405109664,1770838232475,-184.22585751,0.00032077,2]
[405109665,1770838232484,-420.0,0.00032332,2]
[405109666,1770838232493,-1150.0,0.0003247,3]
[405109667,1770838232502,-587.0,0.00034847,2]
[405109668,1770838232512,-200.66401589,0.00034978,2]
[405109669,1770838232522,-5769.4332942,0.00035268,2]
[405109670,1770838232531,-1196.132462,0.00035436,2]
[405109671,1770838232540,-167.29887554,0.00036503,2]
[405109672,1770838232552,-12.70112446,0.00036503,2]
[405109673,1770838232561,-153.446,0.00036503,2]
[405109674,1770838232570,-894.07418258,0.00036603,2]
[405109716,1770838239381,-1105.92581742,0.00036603,2]
[405109717,1770838239390,-168.0,0.00036682,2]
[405109718,1770838239400,-397.48596681,0.00036986,5]
[405109719,1770838239411,-1028.7568037,0.00037,7]
[405109720,1770838239421,-154.80218079,0.0003709,2]
[405109721,1770838239430,-202.0,0.0003709,3]
[405109722,1770838239439,-453.5,0.00037635,30]
[405109723,1770838239448,-892.0,0.00037635,30]
[405109724,1770838239458,-553.8632305,0.00037677,2]
[405109725,1770838239468,-500.0,0.00037889,2]
[405109726,1770838239478,-500.0,0.00037889,2]
[405109727,1770838239487,-24252.8934958,0.0003789,2]
[405109728,1770838239602,-3946.17778431,0.0003789,2]
[405109729,1770838239620,-400.38997122,0.0003789,2]
[405109960,1770838267771,340.58336932,0.00013273,2]
[405109967,1770838386725,150.0,0.0002589,2]
[405109968,1770838387091,156.30750989,0.0002789,2]
[405109975,1770838447620,500.0,0.00013699,2]
[405109978,1770838512987,173.97860575,0.00013821,2]
[405109979,1770838517196,500.0,0.00013273,2]
[405109980,1770838521079,500.0,0.00013699,2]
[405109982,1770838567333,391.14500463,0.00013273,2]
[405109984,1770838569154,201.997682,0.00015068,2]
[405109985,1770838577452,500.0,0.00013273,2]
[405109995,1770838865655,445.0193537,0.00013699,2]
[405109998,1770839028531,-478.39104371,0.000237,2]
[405110011,1770839072895,-287.78254614,0.000237,2]
[405110012,1770839074396,-249.35732485,0.000237,2]
[405110013,1770839076543,-499.99956582,0.000237,2]
[405110014,1770839148116,-1639.55972469,0.0002487,2]
[405110015,1770839164036,500.0,0.00013273,2]
[405110016,1770839164089,1000.0,0.00013821,2]
[405110017,1770839164860,318.1151142,0.00021918,2]
[405110018,1770839199085,-298.46399934,0.00024621,2]
[405110019,1770839231092,-404.44076354,0.00024621,2]
[405110020,1770839236082,-168.98474853,0.00024621,2]
[405110021,1770839249087,-894.49150089,0.00024621,2]
[405110022,1770839249108,-817.14465067,0.0002487,2]
[405110024,1770839362089,-687.5,0.00024621,2]
[405110025,1770839362110,-150.0,0.00024746,2]
[405110027,1770839367124,-156.30750989,0.00026746,2]
[405110028,1770839367144,-400.0,0.00031442,3]
[405110029,1770839367163,-331.34934068,0.00031443,2]
[405110030,1770839367186,-500.0,0.00031443,2]
[405110031,1770839367206,-385.15710622,0.00031443,2]
[405110048,1770839431622,-18.77608317,0.00031442,3]
[405110049,1770839431633,-232.22391683,0.00031442,3]
[405110050,1770839431643,-29.24330907,0.00031443,2]
[405110062,1770839437695,-85.59958471,0.00031443,2]
[405110063,1770839437705,-500.0,0.00031443,2]
[405110064,1770839437714,-500.0,0.00031443,2]
[405110065,1770839437723,-500.0,0.00031443,2]
[405110066,1770839437732,-500.0,0.00031443,2]
[405110067,1770839437742,-500.0,0.00031443,2]
[405110068,1770839437751,-500.0,0.00031443,2]
[405110069,1770839437760,-500.0,0.00031443,2]
[405110070,1770839437769,-500.0,0.00031443,2]
[405110071,1770839437778,-500.0,0.00031443,2]
[405110072,1770839437788,-500.0,0.00031443,2]
[405110073,1770839437798,-500.0,0.00031443,2]
[405110074,1770839437807,-500.0,0.00031443,2]
[405110075,1770839437816,-500.0,0.00031443,2]
[405110076,1770839437825,-500.0,0.00031443,2]
[405110077,1770839437835,-255.935107,0.00031443,2]
[405110078,1770839437844,-500.0,0.00031443,2]
[405110079,1770839437853,-500.0,0.00031443,2]
[405110080,1770839437863,-492.46594768,0.00031443,2]
[405110081,1770839437872,-500.0,0.00031443,2]
[405110082,1770839437881,-500.0,0.00031443,2]
[405110083,1770839437891,-500.0,0.00031443,2]
[405110084,1770839437900,-500.0,0.00031443,2]
[405110085,1770839437910,-500.0,0.00031443,2]
[405110086,1770839437919,-500.0,0.00031443,2]
[405110087,1770839437927,-500.0,0.00031443,2]
[405110088,1770839437937,-500.0,0.00031443,2]
[405110089,1770839437946,-500.0,0.00031443,2]
[405110090,1770839437956,-500.0,0.00031443,2]
[405110091,1770839437965,-500.0,0.00031443,2]
[405110092,1770839437974,-153.02331448,0.00031443,2]
[405110093,1770839437983,-500.0,0.00031443,2]
[405110094,1770839437993,-500.0,0.00031443,2]
[405110095,1770839438003,-500.0,0.00031443,2]
[405110096,1770839438012,-500.0,0.00031443,2]
[405110097,1770839438022,-500.0,0.00031443,2]
[405110098,1770839438032,-500.0,0.00031443,2]
[405110099,1770839438041,-500.0,0.00031443,2]
[405110100,1770839438051,-500.0,0.00031443,2]
[405110101,1770839438061,-500.0,0.00031443,2]
[405110102,1770839438070,-500.0,0.00031443,2]
[405110103,1770839438080,-500.0,0.00031443,2]
[405110104,1770839438089,-500.0,0.00031443,2]
[405110105,1770839438099,-500.0,0.00031443,2]
[405110106,1770839438108,-500.0,0.00031443,2]
[405110107,1770839438118,-500.0,0.00031443,2]
[405110108,1770839438127,-500.0,0.00031443,2]
[405110109,1770839438137,-500.0,0.00031443,2]
[405110110,1770839438147,-500.0,0.00031443,2]
[405110111,1770839438156,-500.0,0.00031443,2]
[405110112,1770839438166,-500.0,0.00031443,2]
[405110113,1770839438175,-500.0,0.00031443,2]
[405110114,1770839438186,-500.0,0.00031443,2]
[405110115,1770839438198,-500.0,0.00031443,2]
[405110116,1770839438210,-500.0,0.00031443,2]
[405110117,1770839438219,-500.0,0.00031443,2]
[405110118,1770839438231,-500.0,0.00031443,2]
[405110119,1770839438241,-500.0,0.00031443,2]
[405110120,1770839438252,-500.0,0.00031443,2]
[405110121,1770839438264,-500.0,0.00031443,2]
[405110122,1770839438274,-232.63745553,0.00031443,2]
[405110123,1770839438284,-500.0,0.00031443,2]
[405110124,1770839438294,-426.64642001,0.00031443,2]
[405110125,1770839438304,-500.0,0.00031443,2]
[405110126,1770839438313,-500.0,0.00031443,2]
[405110127,1770839438323,-500.0,0.00031443,2]
[405110128,1770839438332,-500.0,0.00031443,2]
[405110129,1770839438342,-500.0,0.00031443,2]
[405110130,1770839438352,-500.0,0.00031443,2]
[405110131,1770839438361,-211.3345601,0.00031443,2]
[405110132,1770839438374,-288.6654399,0.00031443,2]
[405110133,1770839438383,-500.0,0.00031443,2]
[405110134,1770839438393,-500.0,0.00031443,2]
[405110135,1770839438403,-500.0,0.00031443,2]
[405110136,1770839438413,-500.0,0.00031443,2]
[405110137,1770839438423,-500.0,0.00031443,2]
[405110138,1770839438433,-500.0,0.00031443,2]
[405110139,1770839438442,-500.0,0.00031443,2]
[405110140,1770839438454,-500.0,0.00031443,2]
[405110141,1770839438465,-120.68512269,0.00031443,2]
[405110142,1770839438484,-379.31487731,0.00031443,2]
[405110143,1770839438494,-500.0,0.00031443,2]
[405110144,1770839438504,-500.0,0.00031443,2]
[405110145,1770839438514,-500.0,0.00031443,2]
[405110146,1770839438523,-500.0,0.00031443,2]
[405110147,1770839438533,-500.0,0.00031443,2]
[405110148,1770839438543,-500.0,0.00031443,2]
[405110149,1770839438553,-500.0,0.00031443,2]
[405110150,1770839438563,-73.869277,0.00031443,2]
[405110160,1770839439754,-420.33927269,0.00031443,2]
[405110162,1770839439763,-2063.89530603,0.00031445,2]
[405110172,1770839439848,-3e-08,0.00031445,2]
[405110187,1770839443981,-806.99127554,0.00031445,2]
[405110196,1770839445817,-879.78954172,0.00031445,2]
[405110198,1770839706182,515.39829676,0.00013699,2]
[405110199,1770839842377,500.0,0.00013699,2]
[405110203,1770840070835,500.0,0.00013699,2]
[405110204,1770840133500,500.0,0.00013699,2]
[405110205,1770840133531,924.21621103,0.00014247,2]
[405110208,1770840331082,-310.20597247,0.0003051,2]
[405110209,1770840377088,500.0,0.00021918,2]
[405110210,1770840377342,158.30619502,0.00013699,2]
[405110211,1770840431127,-212.48854168,0.00030175,2]
[405110212,1770840432086,-185.15235271,0.00030175,2]
[405110213,1770840545135,-340.97676231,0.00030003,2]
[405110214,1770840545156,-909.57533831,0.00030175,2]
[405110215,1770840545177,-902.39520099,0.00030205,2]
[405110217,1770840603424,473.53260077,0.00021918,2]
[405110249,1770840632093,-215.55614072,0.00024953,2]
[405110251,1770840632104,-204.0,0.0002589,2]
[405110253,1770840632115,-598.066231,0.00031133,2]
[405110255,1770840632125,-240.84970466,0.00031272,2]
[405110257,1770840632135,-368.26143831,0.00031425,2]
[405110263,1770840637820,-31.73856169,0.00031425,2]
[405110264,1770840637831,-151.0,0.00031426,2]
[405110265,1770840637840,-151.0,0.00031426,2]
[405110266,1770840637849,-151.0,0.00031426,2]
[405110267,1770840637859,-151.0,0.00031426,2]
[405110268,1770840637869,-151.0,0.00031426,2]
[405110269,1770840637878,-151.0,0.00031426,2]
[405110270,1770840637888,-151.0,0.00031426,2]
[405110271,1770840637897,-151.0,0.00031426,2]
[405110272,1770840637907,-151.0,0.00031426,2]
[405110273,1770840637916,-151.0,0.00031426,2]
[405110274,1770840637925,-151.0,0.00031426,2]
[405110276,1770840637935,-151.0,0.00031426,2]
[405110278,1770840637944,-127.77239575,0.00031426,2]
[405110279,1770840637957,-52.22760425,0.00031426,2]
[405110280,1770840637966,-500.0,0.00031444,2]
[405110281,1770840637975,-221.3851053,0.00031444,2]
[405110282,1770840637985,-290.63266027,0.00031444,2]
[405110283,1770840637996,-209.36733973,0.00031444,2]
[405110285,1770840638005,-465.81678079,0.00031444,2]
[405110287,1770840638015,-500.0,0.00031444,2]
[405110288,1770840638025,-500.0,0.00031444,2]
[405110290,1770840638034,-500.0,0.00031444,2]
[405110292,1770840638044,-444.08668526,0.00031444,2]
[405110294,1770840638054,-500.0,0.00031444,2]
[405110297,1770840638178,-500.0,0.00031444,2]
[405110298,1770840638189,-581.40416173,0.00031444,2]
[405110299,1770840638199,-500.0,0.00031444,2]
[405110300,1770840638208,-23748.58430068,0.00031445,2]
[405110301,1770840638218,-341.6459466,0.00032834,2]
[405110302,1770840638228,-500.0,0.00032876,2]
[405110303,1770840638237,-156.734,0.00033199,35]
[405110304,1770840638248,-182.13973474,0.00033418,10]
[405110305,1770840638258,-158.53455867,0.00033418,10]
[405110306,1770840638267,-349.845205,0.00033569,2]
[405110307,1770840638278,-253.0,0.00033819,2]
[405110308,1770840638287,-180.67903954,0.00034165,2]
[405110309,1770840638297,-250.0,0.00034619,2]
[405110310,1770840638306,-500.0,0.00034619,2]
[405110311,1770840638316,-250.0,0.00034619,2]
[405110312,1770840638326,-500.0,0.00034619,2]
[405110313,1770840638335,-250.0,0.00034619,2]
[405110314,1770840638344,-619.49721883,0.00034619,2]
[405110315,1770840638353,-304.82778117,0.00034619,2]
[405110316,1770840638363,-209.40437686,0.00034619,2]
[405110317,1770840638372,-500.0,0.00034619,2]
[405110318,1770840638381,-170.8169302,0.00034619,2]
[405110319,1770840638395,-500.0,0.00034619,2]
[405110320,1770840638404,-500.0,0.00034619,2]
[405110321,1770840638414,-500.0,0.00034619,2]
[405110322,1770840638423,-500.0,0.00034619,2]
[405110323,1770840638433,-280.772226,0.00034619,2]
[405110324,1770840638444,-250.0,0.00034619,2]
[405110325,1770840638453,-250.0,0.00034619,2]
[405110326,1770840638463,-250.0,0.00034619,2]
[405110327,1770840638473,-250.0,0.00034619,2]
[405110328,1770840638482,-250.0,0.00034619,2]
[405110329,1770840638492,-250.0,0.00034619,2]
[405110330,1770840638502,-4968.070851,0.00034861,2]
[405110331,1770840638511,-349.845205,0.00034983,2]
[405110332,1770840638522,-331.60654351,0.00034994,2]
[405110333,1770840638532,-589.52274402,0.00034994,2]
[405110334,1770840638542,-361.19522861,0.00034994,2]
[405110335,1770840638553,-642.12485086,0.00034994,2]
[405110336,1770840638566,-300.0,0.00035841,2]
[405110337,1770840638576,-401.0,0.00036032,11]
[405110338,1770840638586,-500.0,0.00036128,2]
[405110339,1770840638596,-10008.3992597,0.0003613,2]
[405110340,1770840638606,-349.845205,0.00036396,2]